Cogmind - Beta 13 @@@ ROGUE MODE // 2024.04.05 @ 04:11:44 Player: SnaveSutit Result: Destroyed by Y-45 Defender with Beam Rifle Performance ------------- Evolutions (1) 500 Regions Visited (3) 600 Robots Destroyed (10) 50 Value Destroyed (390) 390 Prototype IDs (0) 0 Alien Tech Used (0) 0 Bonus (0) 0 TOTAL SCORE: 1540 Bonus ------- None Cogmind --------- Core Integrity 0/400 Matter 294/300 Energy 99/100 System Corruption 0% Temperature Cool (9) Movement Core (50) Location -9/Materials Parts ------- > --- POWER (1) -------- (None) > --- PROPULSION (2) --- (None) > --- UTILITY (3) ------ (None) > --- WEAPON (3) ------- Heavy Assault Rifle > --- INVENTORY (5) ---- Light Ion Engine Heat Sink Improved Heat Sink Huge Storage Unit Beam Cannon Peak State ------------ > --- POWER ------------ Light Nuclear Core > --- PROPULSION ------- Light Treads Light Treads > --- UTILITY ---------- Small Storage Unit > --- WEAPON ----------- Assault Rifle Assault Rifle > --- INVENTORY -------- Ion Engine Light Ion Engine Huge Storage Unit [Rating: 8] Favorites ----------- Power Ion Engine Engine Ion Engine Power Core Light Nuclear Core Propulsion Light Treads Treads Light Treads Utility Small Storage Unit Storage Small Storage Unit Weapon Assault Rifle Energy Cannon Beam Cannon Ballistic Gun Assault Rifle Build | -11 -10 -10 -9 ------- Run | Yrd Mat Min Mat Slots Evolved 2 | . . . 2 Power . | . . . . Propulsion . | . . . . Utility 1 | . . . 1 Weapon 1 | . . . 1 Parts Attached 11 | 6 2 . 3 Power 2 | 1 1 . . Engine 1 | 1 . . . Core 1 | . 1 . . Reactor . | . . . . Propulsion 2 | 2 . . . Treads 2 | 2 . . . Leg . | . . . . Wheel . | . . . . Hover . | . . . . Flight . | . . . . Utility 2 | 1 1 . . Device . | . . . . Storage 2 | 1 1 . . Processor . | . . . . Hackware . | . . . . Protection . | . . . . Artifact . | . . . . Weapon 5 | 2 . . 3 Energy Gun . | . . . . Energy Cannon 1 | . . . 1 Ballistic Gun 4 | 2 . . 2 Ballistic Cannon . | . . . . Launcher . | . . . . Special Weapon . | . . . . Impact Weapon . | . . . . Slashing Weapon . | . . . . Piercing Weapon . | . . . . Special Melee Weapon . | . . . . Unidentified Prototypes . | . . . . Parts Lost 5 | . 1 . 4 Power 1 | . . . 1 Propulsion 2 | . 1 . 1 Utility . | . . . . Weapon 2 | . . . 2 Highest Loss Streak 4 | . 1 . 4 To Critical Strikes . | . . . . Average Slot Usage (%) 71 | . 83 71 32 Engine 8 | . 11 . . Core 3 | . 2 14 5 Treads 20 | . 26 14 6 Storage 12 | . 14 14 6 Ballistic Gun 24 | . 28 28 13 Naked Turns 34 | . . . 34 Heaviest Build 89 | 14 89 89 89 Greatest Support 40 | 40 40 20 20 Greatest Overweight (x) 4 | . 4 4 4 Average Overweight (x) . | . . 4 . Largest Inventory Capacity 25 | 8 25 25 25 Average Capacity 12 | 7 10 25 16 Most Carried 5 | 4 3 4 5 Average Carried 2 | 1 1 3 4 Final Capacity 25 | 8 25 25 5 Final Carried 5 | 1 3 4 5 Class Distribution -------------------- 100% | Mutant Dominant Class ---------------- Mutant | -10/Materials Mutant | -10/Mines Mutant | -9/Materials Resources | -11 -10 -10 -9 ----------- Run | Yrd Mat Min Mat Matter Collected 517 | 233 228 24 32 Remotely . | . . . . Salvage Created 434 | . 275 99 60 Parts 23 | . 18 4 1 Haulers Intercepted . | . . . . Recyclers Shooed 1 | . 1 . . Parts Field Recycled . | . . . . Retrieved Matter . | . . . . Parts Self-Destructed . | . . . . Prevented . | . . . . Kills | -11 -10 -10 -9 ------- Run | Yrd Mat Min Mat Combat Hostiles Destroyed 10 | . 7 2 1 Guns 9 | . 7 2 . Cannons 1 | . . . 1 Classes Destroyed 2 | . 1 . 1 Grunt 9 | . 7 2 . Sentry 1 | . . . 1 Best Kill Streak 2 | . 2 2 1 Combat Bots Only 2 | . 2 2 1 Max Kills in Single Turn 1 | . 1 1 1 Gunslinging . | . . . . Exploded . | . . . . Melee . | . . . . Uniques/NPCs Destroyed . | . . . . Combat | -11 -10 -10 -9 -------- Run | Yrd Mat Min Mat Hostile Shots Fired 121 | . 62 4 55 Missed 37 | . 18 2 17 Damage Taken 1161 | . 480 21 660 Core 519 | . 97 10 412 Absorbed by Shields . | . . . . Core Remaining (%) 78 | 100 . 57 . Volleys Fired 49 | . 31 4 14 Largest 2 | . 2 2 2 Hottest 60 | . 40 40 60 Shots Fired 88 | . 62 8 18 Gun 81 | . 62 8 11 Cannon 7 | . . . 7 Launcher . | . . . . Special . | . . . . Kinetic 81 | . 62 8 11 Thermal 7 | . . . 7 Explosive . | . . . . Electromagnetic . | . . . . Robot Hit Streak 10 | . 10 5 9 Robot Miss Streak 2 | . 1 2 1 Penetration Max . | . . . . Secondary Targets 2 | . 1 1 . Max Gunslinging Chain 1 | . 1 1 . Shots Hit Robots 62 | . 44 4 14 Core Hits 23 | . 16 3 4 Critical Kills 1 | . . 1 . Critical Parts Destroyed . | . . . . Critical Strikes 1 | . . 1 . Destroy 1 | . . 1 . Melee Attacks . | . . . . Impact . | . . . . Slashing . | . . . . Piercing . | . . . . Sneak Attacks . | . . . . Combat Hostiles . | . . . . Follow-up Attacks . | . . . . Damage Inflicted 864 | . 598 47 219 Guns 740 | . 598 47 95 Cannons 124 | . . . 124 Explosions . | . . . . Melee . | . . . . Ramming . | . . . . Kinetic 740 | . 598 47 95 Thermal 124 | . . . 124 Explosive . | . . . . Electromagnetic . | . . . . Impact . | . . . . Slashing . | . . . . Piercing . | . . . . Highest Corruption . | . . . . Average Corruption . | . . . . Corruption Purged . | . . . . Corruption Blocked . | . . . . Overload Shots . | . . . . Overflow Damage . | . . . . Projectiles . | . . . . Explosions . | . . . . Melee . | . . . . Knockbacks . | . . . . Impact . | . . . . Kinetic . | . . . . Secondary . | . . . . Self-Inflicted Damage . | . . . . Shots . | . . . . Rammed 1 | . . . 1 Targets Rammed 1 | . . . 1 Kicked . | . . . . Crushed . | . . . . Highest Temperature 55 | . 2 2 55 Average Temperature 18 | . 1 1 33 Received Heat Transfer 384 | . 213 12 159 Siege Activations . | . . . . Robots Corrupted . | . . . . Combat Hostiles . | . . . . Parts Fried . | . . . . Impact Corruptions . | . . . . Robots Melted . | . . . . Combat Hostiles . | . . . . Parts Melted 2 | . . . 2 Heat Transferred 259 | . . . 259 Parts Sabotaged . | . . . . Parts Stolen . | . . . . Parts Stripped . | . . . . Power Chain Reactions . | . . . . Alert | -11 -10 -10 -9 ------- Run | Yrd Mat Min Mat Peak Influence 191 | . 191 124 98 Initial 74 | . . 74 48 Average 50 | . 48 121 46 Maximum Alert Level . | . . . . Low Security (%) 100 | 100 100 100 100 Level 1 . | . . . . Level 2 . | . . . . Level 3 . | . . . . Level 4 . | . . . . Level 5 . | . . . . High Security . | . . . . Max Security . | . . . . Squads Dispatched 1 | . 1 . . Investigation . | . . . . Extermination . | . . . . Reinforcement 1 | . 1 . . Assault . | . . . . Garrison . | . . . . Intercept . | . . . . Searches Triggered . | . . . . Construction Impeded . | . . . . Haulers Reinforced . | . . . . Active Scanning Responses . | . . . . Cargo Convoy Interrupts . | . . . . Stealth | -11 -10 -10 -9 --------- Run | Yrd Mat Min Mat Distress Signals 3 | . 1 . 2 Communications Jammed . | . . . . Distress Signals . | . . . . Times Spotted 23 | . 12 1 10 Peak Tracking Total 10 | . 3 1 10 Tactical Retreats 2 | . 1 . 1 Traps | -11 -10 -10 -9 ------- Run | Yrd Mat Min Mat Traps Triggered . | . . . . Indirectly . | . . . . Trap Hack Attempts . | . . . . Triggered . | . . . . Disarmed . | . . . . Reprogrammed . | . . . . Reused . | . . . . Traps Extracted . | . . . . Installed . | . . . . Triggered . | . . . . Machines | -11 -10 -10 -9 ---------- Run | Yrd Mat Min Mat Machines Disabled . | . . . . Max in Single Turn . | . . . . Machines Repaired . | . . . . Machines Dismantled . | . . . . Machines Sabotaged . | . . . . Overloaded Fab Kills . | . . . . Hacking | -11 -10 -10 -9 --------- Run | Yrd Mat Min Mat Machines Accessed . | . . . . Terminals . | . . . . Fabricators . | . . . . Repair Stations . | . . . . Recycling Units . | . . . . Scanalyzers . | . . . . Garrison Access . | . . . . Total Hacks . | . . . . Successful . | . . . . Failed . | . . . . Catastrophic . | . . . . Database Lockouts . | . . . . Manual . | . . . . Terminals . | . . . . Fabricators . | . . . . Repair Stations . | . . . . Recycling Units . | . . . . Scanalyzers . | . . . . Garrison Access . | . . . . Terminal Hacks . | . . . . Fabricator Hacks . | . . . . Repair Station Hacks . | . . . . Recycling Unit Hacks . | . . . . Scanalyzer . | . . . . Garrison Access Hacks . | . . . . Unauthorized Hacks . | . . . . Terminals . | . . . . Fabricators . | . . . . Repair Stations . | . . . . Recycling Units . | . . . . Scanalyzers . | . . . . Garrison Access . | . . . . Data Cores Recovered . | . . . . Used . | . . . . Hacking Detections . | . . . . Full Trace Events . | . . . . Feedback Events . | . . . . Feedback Blocked . | . . . . Robot Schematics Acquired . | . . . . Robots Built . | . . . . Authchips . | . . . . Time . | . . . . Total Robot Build Rating . | . . . . Part Schematics Acquired . | . . . . Parts Built . | . . . . Authchips . | . . . . Time . | . . . . Total Part Build Rating . | . . . . Parts Repaired . | . . . . Time . | . . . . Parts Recycled . | . . . . Recycled Matter . | . . . . Retrieved Matter . | . . . . Retrieved Components . | . . . . Parts Scanalyzed . | . . . . Part Schematics Acquired . | . . . . Parts Damaged . | . . . . Bothacking | -11 -10 -10 -9 ------------ Run | Yrd Mat Min Mat Used RIF Installer . | . . . . Robots Hacked . | . . . . Non-combat . | . . . . Combat . | . . . . Robot Hacks Applied . | . . . . Relay Couplers Released . | . . . . Fabnet Peak Effective % . | . . . . Robots Rewired . | . . . . Allies Hacked . | . . . . Hacks Repelled . | . . . . Allies | -11 -10 -10 -9 -------- Run | Yrd Mat Min Mat Total Allies . | . . . . Largest Group . | . . . . Highest-Rated Group . | . . . . Highest-Rated Ally . | . . . . Total Orders . | . . . . Ally Attacks . | . . . . Total Damage . | . . . . Kills . | . . . . Allies Corrupted . | . . . . Allies Melted . | . . . . Intel | -11 -10 -10 -9 ------- Run | Yrd Mat Min Mat Robot Analysis Total . | . . . . Derelict Logs Recovered . | . . . . Drone Launches . | . . . . Drone Recoveries . | . . . . Exploration | -11 -10 -10 -9 ------------- Run | Yrd Mat Min Mat Turns Passed 1053 | 64 690 81 218 Spaces Moved 274 | 34 87 15 138 Core 127 | 3 . . 124 Treads 147 | 31 87 15 14 Legs . | . . . . Wheels . | . . . . Hover . | . . . . Flight . | . . . . Fastest Speed 50 | 50 160 480 50 Average Speed 165 | 150 231 480 93 Slowest Speed 480 | 160 480 480 480 Overloaded Moves . | . . . . Propulsion Burnouts . | . . . . Robots Hopped . | . . . . Cave-ins Triggered . | . . . . Exploration Rate (%) 13 | 3 18 9 23 Regions Visited 3 Branch Regions 1 Pre-discovered Areas . | . . . . Known Exits Taken . | . . . . Unknown Exits Taken 3 | 1 1 1 . Scrap Searched . | . . . . Spaces Dug . | . . . . Terrain Destroyed . | . . . . Melee . | . . . . Projectile . | . . . . AOE . | . . . . Terrain Rammed . | . . . . Walls Destroyed . | . . . . Machines Disabled . | . . . . Actions | -11 -10 -10 -9 --------- Run | Yrd Mat Min Mat Total 778 | 47 516 19 196 Wait 429 | 1 393 . 35 Move 271 | 33 86 14 138 Hop . | . . . . Pick Up 12 | 7 3 1 1 Fast Attach 3 | . . . 3 Attach 6 | 6 . . . Detach 1 | . . . 1 Swap 2 | . 2 . . Drop 4 | . 1 . 3 Fire 49 | . 31 4 14 Melee . | . . . . Ram 1 | . . . 1 Kick . | . . . . Crush . | . . . . Escape Stasis . | . . . . Rewire . | . . . . Trap . | . . . . Miscellaneous . | . . . . Route ------- -11/Scrapyard -10/Materials -10/Mines -9/Materials History --------- Turn | Location | Event 12 | -11/Scrapyard | Discovered new exit (range 15) 65 | -11/Scrapyard | Entered Materials 313 | -10/Materials | Build established: Mutant 628 | -10/Materials | Discovered new exit (range 14) 755 | -10/Materials | Entered Mines 807 | -10/Mines | Discovered new exit (range 7) 836 | -10/Mines | Entered Materials 836 | -9/Materials | Evolved 2 slots: Utility x1, Weapon x1 965 | -9/Materials | Core integrity fell below 50% 982 | -9/Materials | Lost 4 parts (1p1n2w) 1008 | -9/Materials | Core integrity fell below 20% 1054 | -9/Materials | Destroyed by Y-45 Defender with Beam Rifle Last Messages --------------- GOAL=ESCAPE 00941_ Lgt. Nuclear Core destroyed. 00949_ Assault Rifle destroyed. 00951_ Lgt. Treads destroyed. 00953_ Slammed into L-31 Rogue. 00966_ Dropped Huge Storage Unit. 00975_ Acquired Huge Storage Unit. 00995_ T-07 Excavator is excavating. 01000_ Acquired Beam Cannon. 01015_ Heat Sink melted. 01015_ Imp. Ion Engine melted. 01015_ Y-45 Defender destroyed. 01017_ Acquired Hvy. Assault Rifle. 01019_ Acquired 22 matter. 01020_ Dropped Hvy. Assault Rifle. 01021_ Acquired Hvy. Assault Rifle. 01022_ Dropped Ion Engine. 01023_ Acquired 10 matter. 01030_ T-07 Excavator is excavating. 01050_ W-16 Scout sends out distress signal. Map ----- +----------------------------------------------------+ | ??????????# # ??????????? | | ??????????# ?+ ??????????? | | ??????????# ?## ##?????????????? | | ??????????# ???# #??????????????? | | ??????????# ???# #??????????????? | | ??????????#######????# #??????????????? | | ?????????????????????# #??????????????? | | ??????????????########+## #??????????????? | | ??????????????# # #??????????????? | | ??????????????# # #??????????????? | | ??????????????# """ # #??????????????? | | ??????????????# """ + g ##### ?????????? | | ??????????????# """ # ????????? | | ??????????????? """ "" # ????????? | | ??????????????? """ S"" # ????????? | | ??????????????? "" # ##### ?????????? | | ???????????############## ## #??????????????? | | ?????????? #? """????????????? | | ?????????? #?? "????????????? | | ?????????? #?? |"????????????? | | ???????????# ############ #??? ""????????????? | | ????????????????????????#a #???? !?????????????? | | ????????????????????????# #???????????????????? | | ????????????????????????# #???????????????????? | | ????????????????????????# ## #??????????????? | | ????????????????????????#@ #??????????????? | | ????????????????????????# #??????????????? | | ????????????????????????+ #??????????????? | | ????????????????????????# #??????????????? | | ????????????????????????# #?????????????? | | ????????????????????????# #?????????????? | | ????????????????????????# +?????????????? | | ????????????????????????# #?????????????? | | ????????????????????????# #?????????????? | | ????????????????????????? r#### ###?????????????? | | ????????????????????????? #???+#???????????????? | | ????????????????????????? #????????????????????? | | ????????????????????????? #????????????????????? | | ????????????????????????? ????????????????????? | | ????????????????????????? ????????????????????? | | ????????????????????????? Y ?????????????????????? | | ?????????????????????????????????????????????????? | | ?????????????????????????????????????????????????? | | ?????????????????????????????????????????????????? | | ?????????????????????????????????????????????????? | | ?????????????????????????????????????????????????? | | ?????????????????????????????????????????????????? | | ?????????????????????????????????????????????????? | | ?????????????????????????????????????????????????? | | ?????????????????????????????????????????????????? | +----------------------------------------------------+ Best States ------------- Heat Dissipation 28 Energy Generation 14 Energy Capacity 250 Matter Stores 300 Matter Capacity 300 Sight Range 16 Terrain Scan Density 10 Evasion (%) 50 Recoil Reduction 2 Item Schematics ----------------- None Robot Schematics ------------------ None Fabricated ------------ Nothing Alien Tech Used ----------------- None Achievements -------------- None Challenges ------------ None Game ------ Seed DeepCoreMembrane Manual? 0 Play Time 00:12:41 Cumulative 8.8 hours Start 2024.04.05 @ 04:00:51 End 2024.04.05 @ 04:11:44 Sessions 1 Manual Loads 0 Difficulty Rogue Special Mode None Game No. 13 Rogue 13 Adventurer 0 Explorer 0 Win Type - Total 0 Types 0/0/0/0/0/0/0/0/0 Lore% 16 Gallery% 16 Achievement% 15 Wizard Run 0 Options --------- Layout 1 ASCII 0 Keyboard 0 Movement Mouse Keybinds 0 Fullscreen 2 Font 24/Smallcaps Map View 50x35 Zoom Use 0% Tactical HUD 1 Map Filters NONE Filters NONE Steam 1 RUN: e7825708-5c38-47a9-8d4a-2f0824b330dc